Cogmind - Beta 14 @@@ ROGUE MODE // 2024.08.14 @ 18:12:05 Player: Olafz Result: Self-destructed Performance ------------- Evolutions (1) 500 Regions Visited (2) 400 Robots Destroyed (25) 125 Value Destroyed (725) 725 Prototype IDs (2) 40 Alien Tech Used (0) 0 Bonus (57) 57 TOTAL SCORE: 1847 Bonus ------- High Alert Combat Kills 57 Cogmind --------- Core Integrity 266/400 Matter 296/300 Energy 275/275 System Corruption 0% Temperature Cool (0) Movement Walking (190) Ox1 Location -9/Materials Parts ------- > --- POWER (1) -------- Deuterium Engine > --- PROPULSION (2) --- Aluminum Leg > --- UTILITY (4) ------ Small Storage Unit Visual Processing Unit Signal Interpreter Improved Light Armor Plating > --- WEAPON (2) ------- Autogun > --- INVENTORY (8) ---- Deuterium Engine Deuterium Engine Aluminum Leg Aluminum Leg Aluminum Leg Flight Unit Flight Unit Peak State ------------ > --- POWER ------------ Deuterium Engine > --- PROPULSION ------- Aluminum Leg Improved Aluminum Leg > --- UTILITY ---------- Small Storage Unit Visual Processing Unit Signal Interpreter Improved Light Armor Plating > --- WEAPON ----------- Particle Gun Autogun > --- INVENTORY -------- Light Ion Engine Light Ion Engine Deuterium Engine Aluminum Leg Aluminum Leg Flight Unit Flight Unit Light Assault Rifle [Rating: 18] Favorites ----------- Power Deuterium Engine Engine Deuterium Engine Propulsion Aluminum Leg Leg Aluminum Leg Utility Small Storage Unit Storage Small Storage Unit Processor Visual Processing Unit Protection Improved Light Armor Plating Weapon Light Assault Rifle Energy Gun Particle Gun Ballistic Gun Light Assault Rifle Build | -11 -10 -9 ------- Run | Yrd Mat Mat Slots Evolved 2 | . . 2 Power . | . . . Propulsion . | . . . Utility 2 | . . 2 Weapon . | . . . Parts Attached 20 | 6 3 11 Power 4 | 1 1 2 Engine 4 | 1 1 2 Core . | . . . Reactor . | . . . Propulsion 6 | 2 1 3 Treads . | . . . Leg 6 | 2 1 3 Wheel . | . . . Hover . | . . . Flight . | . . . Utility 4 | 1 . 3 Device . | . . . Storage 1 | 1 . . Processor 2 | . . 2 Hackware . | . . . Protection 1 | . . 1 Artifact . | . . . Weapon 6 | 2 1 3 Energy Gun 2 | . 1 1 Energy Cannon . | . . . Ballistic Gun 4 | 2 . 2 Ballistic Cannon . | . . . Launcher . | . . . Special Weapon . | . . . Impact Weapon . | . . . Slashing Weapon . | . . . Piercing Weapon . | . . . Special Melee Weapon . | . . . Unidentified Prototypes . | . . . Parts Lost 5 | . 1 4 Power 1 | . . 1 Propulsion 1 | . . 1 Utility . | . . . Weapon 3 | . 1 2 Highest Loss Streak 2 | . 1 2 To Critical Strikes . | . . . Average Slot Usage (%) 86 | . 85 87 Engine 11 | . 14 11 Leg 23 | . 28 20 Storage 11 | . 14 11 Processor 11 | . . 16 Protection 4 | . . 6 Energy Gun 7 | . 4 8 Ballistic Gun 15 | . 23 12 Peak Build Rating 18 | 6 7 18 Average Rating 10 | 3 6 14 On Entrance 4 | . 6 7 Naked Turns . | . . . Heaviest Build 23 | 12 14 23 Greatest Support 23 | 20 20 23 Greatest Overweight (x) 3 | 3 . 1 Average Overweight (x) . | 1 . . Largest Inventory Capacity 8 | 8 8 8 Average Capacity 7 | 7 8 8 Most Carried 8 | 1 5 8 Average Carried 4 | . 1 7 Final Capacity 8 | 8 8 8 Final Carried 7 | 1 5 7 Class Distribution -------------------- 74% | Mutant 25% | Scavenger-Mutant Dominant Class ---------------- Mutant | -10/Materials Mutant | -9/Materials Resources | -11 -10 -9 ----------- Run | Yrd Mat Mat Matter Collected 657 | 151 187 319 Remotely . | . . . Salvage Created 801 | . 137 664 Parts 52 | . 12 40 Haulers Intercepted . | . . . Recyclers Shooed 2 | . 1 1 Parts Field Recycled . | . . . Retrieved Matter . | . . . Parts Self-Destructed . | . . . Prevented . | . . . Kills | -11 -10 -9 ------- Run | Yrd Mat Mat Combat Hostiles Destroyed 24 | . 6 18 Guns 24 | . 6 18 Classes Destroyed 5 | . 2 3 Watcher 1 | . . 1 Swarmer 8 | . 4 4 Grunt 12 | . 2 10 Duelist 1 | . . 1 Sentry 3 | . . 3 Best Kill Streak 6 | . 6 4 Combat Bots Only 6 | . 6 4 Max Kills in Single Turn 1 | . 1 1 Gunslinging . | . . . Exploded . | . . . Melee . | . . . Uniques/NPCs Destroyed . | . . . Combat | -11 -10 -9 -------- Run | Yrd Mat Mat Hostile Shots Fired 132 | . 45 87 Missed 36 | . 12 24 Damage Taken 1174 | . 337 837 Core 176 | . 42 134 Absorbed by Shields . | . . . Core Remaining (%) 91 | 100 83 . Volleys Fired 86 | . 27 59 Largest 2 | . 2 2 Hottest 88 | . 40 88 Shots Fired 154 | . 53 101 Gun 154 | . 53 101 Cannon . | . . . Launcher . | . . . Special . | . . . Kinetic 118 | . 53 65 Thermal 36 | . . 36 Explosive . | . . . Electromagnetic . | . . . Robot Hit Streak 17 | . 17 10 Robot Miss Streak 3 | . 2 3 Penetration Max . | . . . Secondary Targets 4 | . . 4 Max Gunslinging Chain 1 | . . 1 Shots Hit Robots 109 | . 39 70 Core Hits 47 | . 15 32 Critical Kills 1 | . . 1 Critical Parts Destroyed . | . . . Critical Strikes 2 | . . 2 Burn 1 | . . 1 Destroy 1 | . . 1 Melee Attacks . | . . . Impact . | . . . Slashing . | . . . Piercing . | . . . Sneak Attacks . | . . . Combat Hostiles . | . . . Follow-up Attacks . | . . . Damage Inflicted 1336 | . 324 1012 Guns 1336 | . 324 1012 Cannons . | . . . Explosions . | . . . Melee . | . . . Ramming . | . . . Kinetic 994 | . 324 670 Thermal 342 | . . 342 Explosive . | . . . Electromagnetic . | . . . Impact . | . . . Slashing . | . . . Piercing . | . . . Highest Corruption . | . . . Average Corruption . | . . . Corruption Purged . | . . . Corruption Blocked . | . . . Overload Shots . | . . . Overflow Damage . | . . . Projectiles . | . . . Explosions . | . . . Melee . | . . . Knockbacks . | . . . Impact . | . . . Kinetic . | . . . Secondary . | . . . Self-Inflicted Damage . | . . . Shots . | . . . Rammed . | . . . Targets Rammed . | . . . Kicked . | . . . Crushed . | . . . Highest Temperature 305 | . 75 305 Average Temperature 109 | . 30 120 Received Heat Transfer 492 | . 171 321 Effects 4 | . . 4 Energy Bleed 1 | . . 1 Interference 3 | . . 3 Siege Activations . | . . . Robots Corrupted . | . . . Combat Hostiles . | . . . Parts Fried . | . . . Impact Corruptions . | . . . Robots Melted . | . . . Combat Hostiles . | . . . Parts Melted 2 | . . 2 Heat Transferred 888 | . . 888 Parts Sabotaged . | . . . Parts Stolen . | . . . Parts Stripped . | . . . Power Chain Reactions . | . . . Alert | -11 -10 -9 ------- Run | Yrd Mat Mat Peak Influence 538 | . 145 538 Initial 61 | . . 61 Average 177 | . 74 256 Maximum Alert Level 2 | . . 2 Low Security (%) 65 | 100 100 44 Level 1 19 | . . 30 Level 2 15 | . . 24 Level 3 . | . . . Level 4 . | . . . Level 5 . | . . . High Security . | . . . Max Security . | . . . Squads Dispatched 2 | . . 2 Investigation 1 | . . 1 Extermination . | . . . Reinforcement 1 | . . 1 Assault . | . . . Garrison . | . . . Intercept . | . . . Searches Triggered . | . . . Construction Impeded 1 | . . 1 Haulers Reinforced . | . . . Active Scanning Responses . | . . . Cargo Convoy Interrupts . | . . . Stealth | -11 -10 -9 --------- Run | Yrd Mat Mat Distress Signals 2 | . 1 1 Communications Jammed . | . . . Distress Signals . | . . . Times Spotted 31 | . 9 22 Peak Tracking Total 6 | . 4 6 Tactical Retreats 2 | . . 2 Traps | -11 -10 -9 ------- Run | Yrd Mat Mat Traps Triggered 1 | . . 1 Indirectly . | . . . Trap Hack Attempts . | . . . Triggered . | . . . Disarmed . | . . . Reprogrammed . | . . . Reused . | . . . Traps Extracted . | . . . Installed . | . . . Triggered . | . . . Machines | -11 -10 -9 ---------- Run | Yrd Mat Mat Machines Disabled . | . . . Max in Single Turn . | . . . Machines Repaired . | . . . Machines Dismantled . | . . . Machines Sabotaged . | . . . Overloaded Fab Kills . | . . . Hacking | -11 -10 -9 --------- Run | Yrd Mat Mat Machines Accessed 3 | . 1 2 Terminals 3 | . 1 2 Fabricators . | . . . Repair Stations . | . . . Recycling Units . | . . . Scanalyzers . | . . . Garrison Access . | . . . Total Hacks 8 | . 1 7 Successful 5 | . . 5 Failed 3 | . 1 2 Catastrophic . | . . . Database Lockouts . | . . . Manual 5 | . 1 4 Terminals 8 | . 1 7 Fabricators . | . . . Repair Stations . | . . . Recycling Units . | . . . Scanalyzers . | . . . Garrison Access . | . . . Terminal Hacks 2 | . . 2 Prototype ID Bank 1 | . . 1 Locate Traps 1 | . . 1 Fabricator Hacks . | . . . Repair Station Hacks . | . . . Recycling Unit Hacks . | . . . Scanalyzer . | . . . Garrison Access Hacks . | . . . Unauthorized Hacks 2 | . . 2 Terminals 2 | . . 2 Botnet 2 | . . 2 Fabricators . | . . . Repair Stations . | . . . Recycling Units . | . . . Scanalyzers . | . . . Garrison Access . | . . . Data Cores Recovered . | . . . Used . | . . . Hacking Detections 2 | . 1 1 Full Trace Events . | . . . Feedback Events . | . . . Feedback Blocked . | . . . Robot Schematics Acquired . | . . . Robots Built . | . . . Authchips . | . . . Time . | . . . Total Robot Build Rating . | . . . Part Schematics Acquired . | . . . Parts Built . | . . . Authchips . | . . . Time . | . . . Total Part Build Rating . | . . . Parts Repaired . | . . . Time . | . . . Parts Recycled . | . . . Recycled Matter . | . . . Retrieved Matter . | . . . Retrieved Components . | . . . Parts Scanalyzed . | . . . Part Schematics Acquired . | . . . Parts Damaged . | . . . Bothacking | -11 -10 -9 ------------ Run | Yrd Mat Mat Used RIF Installer . | . . . Robots Hacked . | . . . Non-combat . | . . . Combat . | . . . Robot Hacks Applied . | . . . Relay Couplers Released . | . . . Fabnet Peak Effective % . | . . . Robots Rewired . | . . . Allies Hacked . | . . . Hacks Repelled . | . . . Allies | -11 -10 -9 -------- Run | Yrd Mat Mat Total Allies . | . . . Largest Group . | . . . Highest-Rated Group . | . . . Highest-Rated Ally . | . . . Total Orders . | . . . Ally Attacks . | . . . Total Damage . | . . . Kills . | . . . Allies Corrupted . | . . . Allies Melted . | . . . Intel | -11 -10 -9 ------- Run | Yrd Mat Mat Robot Analysis Total . | . . . Derelict Logs Recovered . | . . . Drone Launches . | . . . Drone Recoveries . | . . . Exploration | -11 -10 -9 ------------- Run | Yrd Mat Mat Turns Passed 666 | 82 171 413 Spaces Moved 328 | 52 80 196 Core 22 | 22 . . Treads . | . . . Legs 306 | 30 80 196 Wheels . | . . . Hover . | . . . Flight . | . . . Fastest Speed 50 | 50 120 120 Average Speed 126 | 140 120 125 Slowest Speed 200 | 200 120 190 Overloaded Moves . | . . . Propulsion Burnouts . | . . . Robots Hopped . | . . . Cave-ins Triggered . | . . . Exploration Rate (%) 17 | 5 21 26 Regions Visited 2 Branch Regions . Pre-discovered Areas . | . . . Known Exits Taken . | . . . Unknown Exits Taken 2 | 1 1 . Scrap Searched . | . . . Spaces Dug . | . . . Terrain Destroyed . | . . . Melee . | . . . Projectile . | . . . AOE . | . . . Terrain Rammed . | . . . Walls Destroyed . | . . . Machines Disabled . | . . . Actions | -11 -10 -9 --------- Run | Yrd Mat Mat Total 445 | 58 111 276 Wait 3 | . . 3 Move 326 | 51 79 196 Hop . | . . . Pick Up 6 | 1 2 3 Fast Attach 10 | 6 1 3 Attach 2 | . . 2 Detach . | . . . Swap 8 | . 2 6 Drop 4 | . . 4 Fire 86 | . 27 59 Melee . | . . . Ram . | . . . Kick . | . . . Crush . | . . . Escape Stasis . | . . . Rewire . | . . . Trap . | . . . Miscellaneous . | . . . Route ------- -11/Scrapyard -10/Materials -9/Materials (discovered 1 exit: [*Min]) History --------- Turn | Location | Event 44 | -11/Scrapyard | Discovered new exit (range 15) 83 | -11/Scrapyard | Entered Materials 224 | -10/Materials | Discovered new exit (range 15) 254 | -10/Materials | Entered another Materials area 254 | -9/Materials | Evolved 2 slots: Utility x2 300 | -9/Materials | Build established: Mutant 573 | -9/Materials | Discovered new exit (range 17) 667 | -9/Materials | Self-destructed Last Messages --------------- K-01 Serf collects debris. G-34 Mercenary destroyed. K-01 Serf collects debris. EXIT=FOUND Acquired 37 matter. R-06 Scavenger collects Heat Sink. L-31 Rogue destroyed. Switching to secondary target: G-34 Mercenary. G-34 Mercenary destroyed. Switching to secondary target: G-47 Trooper. Particle Gun destroyed. Imp. Aluminum Leg destroyed. Overheating: Energy bleed (-27). G-47 Trooper destroyed. K-01 Serf collects debris. Acquired 42 matter. K-01 Serf collects debris. R-06 Scavenger collects Aluminum Leg. G-34 Mercenary destroyed. Acquired 57 matter. Map ----- +----------------------------------------------------+ | | | | | | | | | | | | | | | | | | | | | | | ?????????????????????????????????????????????????? | | ?????????????????????????????????????????????????? | | ?????????????????????????????????????????????????? | | ?????????????????????????????????????????????????? | | ?????????????????????###########???????##????????? | | ?????????????????????# ######## ????????? | | ?????????????????????# # [ ## ????????? | | ?????????????????????# # ## ????????? | | ?????????????????????# # """ ## ????????? | | ?????????????????????# # """ ## #????????? | | ?????????????????????# # """ ## #????##### | | ?????????????????????# # ## #???##"""# | | ?????????????????????# # ??# #??##"!!!" | | ????????????????##########+###+##+##### ####"" " | | ???????? @ *%!* g + | | ???????? Y #####*### # < | | ????????u u #???#%#?# # | | ????????? ############ ##???# #?#! !# | | ?????????#???????????????# #????# #?##!!!!### | | ?????????????????????????#a#????#+#??######?## # | | ?????????????????????????# T???? ??????????# # | | ?????????????????????????# ???? ??????????# # | | ????????????????????????? ???? ??????????# # | | ?????????????????????????# ??? ??????????# # | | ?????????????????????????? k"???" ??????????# # | | ?????????????????????????? "???" ??????????# [ # | | ?????????????????????????? "???" ??????????# # | | ?????????????????????????? ??? ??????????# # | | ??????????????????????????#####?+###????????## # | | ????????????????????????????? ##+####### ! | | ????????????????????????????? | | ????????????????????????????? | | ?????????????????????????????? """"" | | ????????????????????????????? """"" | | ?????????????????????????????# """"" ##### | | ?????????????????????????????# % #! | | ?????????????????????????????# ! %/* | | ?????????????????????????????# # | | ?????????????????????????????# ########### # | +----------------------------------------------------+ Best States ------------- Heat Dissipation 28 Energy Generation 14 Energy Capacity 275 Matter Stores 300 Matter Capacity 300 Sight Range 18 Terrain Scan Density 10 Armor Coverage 150 Evasion (%) 55 Item Schematics ----------------- None Robot Schematics ------------------ None Fabricated ------------ Nothing Alien Tech Used ----------------- None Achievements -------------- None Challenges ------------ None Game ------ Seed RestorationHackingRailgun Manual? 0 Play Time 00:09:04 Cumulative 203.4 hours Start 2024.08.14 @ 17:59:29 End 2024.08.14 @ 18:12:05 Sessions 1 Manual Loads 0 Difficulty Rogue Special Mode None Game No. 368 Rogue 366 Adventurer 2 Explorer 0 Win Type - Total 9 Types 8/0/0/1/0/0/0/0/0 Lore% 72 Gallery% 65 Achievement% 56 Wizard Run 0 Options --------- Layout 0 ASCII 0 Keyboard 1 Movement Numpad Keybinds 1 Fullscreen 2 Font 18/SmallcapsGlow Map View 76x50 Zoom Use 0% Tactical HUD 1 Map Filters NONE Filters NONE Steam 1 RUN: 11435144-3f9c-4491-b9a8-12c62ae7dbdc